fUSD/lending_fUSD_20260408
["ID","MTS","AMOUNT","RATE_DAILY","PERIOD"]
[420108165,1775682646560,-500.0,0.00015,2]
[420108166,1775682646575,-500.0,0.00015,2]
[420108167,1775682646585,-500.0,0.00015,2]
[420108168,1775682646596,-500.0,0.00015,2]
[420108169,1775682646606,-500.0,0.00015,2]
[420108170,1775682646617,-160.0,0.00015,2]
[420108171,1775682646628,-1007.07827575,0.00015,2]
[420108172,1775682646638,-1000.0,0.00015013,2]
[420108173,1775682646649,-736.0,0.00015016,2]
[420108174,1775682646663,-500.0,0.0001503,2]
[420108175,1775682646673,-8260.13072239,0.0001503,2]
[420108176,1775682646683,-151.0,0.0001503,2]
[420108177,1775682646693,-250.0,0.00015033,2]
[420108178,1775682646704,-162.0,0.0001504,2]
[420108179,1775682646715,-1573.0,0.0001504,2]
[420108180,1775682646726,-1573.0,0.0001504,2]
[420108181,1775682646739,-1000.0,0.00015046,2]
[420108182,1775682646750,-276.32,0.00015063,2]
[420108183,1775682646761,-450.0,0.00015068,2]
[420108184,1775682646772,-800.91792691,0.00015068,2]
[420108185,1775682646784,-477.15533545,0.00015074,2]
[420108186,1775682646795,-500.0,0.00015085,2]
[420108187,1775682646806,-8565.75555911,0.00015085,2]
[420108188,1775682646817,-151.0,0.00015085,2]
[420108189,1775682646828,-500.0,0.000151,2]
[420108190,1775682646838,-500.0,0.000151,2]
[420108191,1775682646849,-500.8742817,0.000151,2]
[420108192,1775682646860,-500.0,0.000151,2]
[420108193,1775682646871,-3449.0,0.000151,2]
[420108194,1775682646883,-524.53,0.00015102,2]
[420108195,1775682646895,-197.4,0.00015118,2]
[420108196,1775682646906,-394.8,0.00015122,2]
[420108197,1775682646918,-197.4,0.00015127,2]
[420108198,1775682646930,-500.0,0.0001514,2]
[420108199,1775682646941,-8882.6885148,0.0001514,2]
[420108200,1775682646952,-151.0,0.0001514,2]
[420108201,1775682646964,-36516.46239318,0.00015144,2]
[420108202,1775682646975,-13920.32217218,0.00015144,2]
[420108203,1775682646986,-954.0,0.00015152,2]
[420108204,1775682646997,-1000.0,0.00015165,2]
[420108205,1775682647008,-187.06446779,0.00015167,2]
[420108206,1775682647018,-812.06,0.00015173,2]
[420108207,1775682647029,-1700.0,0.00015178,2]
[420108208,1775682647040,-3000.0,0.00015178,2]
[420108209,1775682647051,-1000.0,0.00015185,2]
[420108210,1775682647062,-500.0,0.00015195,2]
[420108211,1775682647074,-9211.34798985,0.00015195,2]
[420108212,1775682647085,-151.0,0.00015195,2]
[420108213,1775682647095,-350.0,0.00015198,3]
[420108214,1775682647106,-1311.204454,0.000152,2]
[420108215,1775682647116,-350.0,0.00015206,2]
[420108216,1775682647128,-1000.0,0.00015209,2]
[420108217,1775682647138,-156.8971398,0.00015219,2]
[420108218,1775682647149,-501.0,0.00015224,3]
[420108219,1775682647161,-823.0,0.00015234,2]
[420108220,1775682647171,-500.0,0.0001525,2]
[420108221,1775682647181,-9166.01560264,0.0001525,2]
[420108222,1775682647191,-175.7599353,0.0001525,2]
[420108223,1775682647201,-1000.0,0.00015273,2]
[420108224,1775682647211,-1000.0,0.00015275,2]
[420108225,1775682647220,-278.98,0.00015276,2]
[420108226,1775682647230,-3292.0,0.00015304,2]
[420108227,1775682647240,-500.0,0.00015305,2]
[420108228,1775682647250,-1000.0,0.00015333,2]
[420108229,1775682647260,-350.0,0.00015336,2]
[420108230,1775682647270,-162.0,0.0001536,2]
[420108231,1775682647280,-1573.0,0.0001536,2]
[420108232,1775682647290,-1563.0,0.0001536,2]
[420108233,1775682647300,-162.0,0.0001536,2]
[420108234,1775682647310,-162.0,0.0001536,2]
[420108235,1775682647321,-162.0,0.0001536,2]
[420108236,1775682647332,-500.0,0.0001536,2]
[420108237,1775682647342,-1000.0,0.00015362,2]
[420108238,1775682647353,-791.0,0.00015363,2]
[420108239,1775682647364,-1466.0,0.00015363,2]
[420108240,1775682647374,-966.0,0.00015363,2]
[420108241,1775682647387,-229.0,0.00015363,2]
[420108242,1775682647397,-1715.0,0.00015363,2]
[420108243,1775682647407,-7641.0,0.00015363,2]
[420108244,1775682647417,-7517.0,0.00015363,2]
[420108245,1775682647427,-1808.0,0.00015363,2]
[420108246,1775682647437,-1000.0,0.00015365,2]
[420108247,1775682647447,-1000.0,0.00015382,2]
[420108248,1775682647457,-1033.98538716,0.00015386,2]
[420108249,1775682647467,-1000.0,0.00015388,2]
[420108250,1775682647477,-260.27033471,0.00015397,2]
[420108251,1775682647487,-224.92107197,0.00015397,2]
[420108252,1775682647498,-480.86728798,0.000154,2]
[420108253,1775682647508,-10110.80354912,0.000154,2]
[420108254,1775682647520,-1000.0,0.00015402,2]
[420108255,1775682647531,-812.06,0.00015404,2]
[420108256,1775682647541,-222.04390486,0.00015415,2]
[420108257,1775682647550,-500.0,0.00015415,2]
[420108258,1775682647562,-1000.0,0.00015421,2]
[420108259,1775682647571,-200.0,0.00015429,2]
[420108260,1775682647581,-1000.0,0.0001544,2]
[420108261,1775682647592,-500.0,0.00015442,2]
[420108262,1775682647602,-954.0,0.00015442,2]
[420108263,1775682647613,-954.0,0.00015444,2]
[420108264,1775682647623,-994.01934182,0.00015464,2]
[420108265,1775682647633,-500.0,0.0001547,2]
[420108266,1775682647643,-9596.7,0.00015471,2]
[420108267,1775682647653,-364.53,0.00015471,2]
[420108268,1775682647662,-1904.19,0.00015471,2]
[420108269,1775682647674,-2471.0,0.00015483,2]
[420108270,1775682647684,-415.0,0.00015483,2]
[420108271,1775682647694,-1000.0,0.00015486,2]
[420108272,1775682647704,-954.0,0.00015494,2]
[420108273,1775682647715,-152.1118183,0.00015499,2]
[420108274,1775682647726,-84895.28463345,0.000155,7]
[420108275,1775682647738,-6189.39595945,0.000155,5]
[420108276,1775682648194,-542.688,0.00012483,2]
[420108277,1775682648207,-616.0,0.00012483,2]
[420108278,1775682648221,-1219.17117707,0.00012483,2]
[420108279,1775682648264,-492.65507974,0.00012483,2]
[420108280,1775682648277,-3151.48574319,0.00012483,2]
[420108281,1775682648288,-16710.60404055,0.000155,5]
[420108282,1775682648300,-350.0,0.00015515,2]
[420108283,1775682648311,-1235.18214925,0.00015523,2]
[420108284,1775682648322,-181.08010149,0.00015523,2]
[420108285,1775682648336,-200.0,0.00015523,2]
[420108286,1775682648347,-771.01748645,0.00015523,2]
[420108287,1775682648358,-181.08010149,0.00015523,2]
[420108288,1775682648369,-181.08010149,0.00015523,2]
[420108289,1775682648383,-599.60298507,0.00015523,2]
[420108290,1775682648393,-500.0,0.00015525,2]
[420108291,1775682648405,-1000.0,0.00015528,2]
[420108292,1775682648415,-6976.45084756,0.00015534,2]
[420108293,1775682648426,-1000.0,0.00015545,2]
[420108294,1775682648437,-242.46089406,0.00015548,2]
[420108295,1775682648448,-1000.0,0.00015548,2]
[420108296,1775682648458,-1000.0,0.00015548,2]
[420108297,1775682648469,-1000.0,0.00015548,2]
[420108298,1775682648480,-1082.33512146,0.00015548,2]
[420108299,1775682648492,-1000.0,0.00015548,2]
[420108300,1775682648502,-1000.0,0.00015548,2]
[420108301,1775682648514,-1000.0,0.00015548,2]
[420108302,1775682648525,-1000.0,0.00015548,2]
[420108303,1775682648536,-500.0,0.00015552,2]
[420108304,1775682648546,-1000.0,0.00015556,2]
[420108305,1775682648556,-173.8362,0.0001557,2]
[420108306,1775682648566,-173.8362,0.0001558,2]
[420108307,1775682648577,-500.0,0.0001558,2]
[420108308,1775682648588,-1000.0,0.00015584,2]
[420108309,1775682648599,-200.0,0.00015584,2]
[420108310,1775682648612,-994.01934182,0.00015587,2]
[420108311,1775682648622,-10000.0,0.000156,2]
[420108312,1775682648633,-36516.46239318,0.000156,2]
[420108313,1775682648645,-13920.32217218,0.000156,2]
[420108314,1775682648657,-4500.0,0.000156,5]
[420108315,1775682648670,-701.5812404,0.0001561,2]
[420108316,1775682648682,-5888.0,0.00015616,2]
[420108317,1775682648694,-1000.0,0.00015617,2]
[420108318,1775682648706,-954.0,0.00015623,2]
[420108319,1775682648716,-5888.0,0.00015627,2]
[420108320,1775682648727,-5122.0,0.00015629,2]
[420108321,1775682648738,-500.0,0.00015635,2]
[420108322,1775682648750,-812.06,0.00015636,2]
[420108323,1775682648762,-1000.0,0.00015639,2]
[420108324,1775682648773,-500.0,0.00015642,2]
[420108325,1775682648783,-500.0,0.00015642,2]
[420108326,1775682648794,-500.0,0.00015642,2]
[420108327,1775682648806,-500.0,0.00015642,2]
[420108328,1775682648817,-500.0,0.00015642,2]
[420108329,1775682648827,-500.0,0.00015642,2]
[420108330,1775682648838,-500.0,0.00015642,2]
[420108331,1775682648849,-500.0,0.00015642,2]
[420108332,1775682648859,-500.0,0.00015642,2]
[420108333,1775682648870,-500.0,0.00015642,2]
[420108334,1775682648880,-500.0,0.00015642,2]
[420108335,1775682648891,-500.0,0.00015642,2]
[420108336,1775682648902,-250.0,0.00015644,2]
[420108337,1775682648912,-1000.0,0.00015648,2]
[420108338,1775682648922,-1000.0,0.00015648,2]
[420108339,1775682648932,-1000.0,0.00015649,2]
[420108340,1775682648943,-994.01934182,0.0001565,2]
[420108341,1775682648954,-480.86728797,0.0001565,2]
[420108342,1775682648964,-10110.80354911,0.0001565,2]
[420108343,1775682648975,-1372.65078494,0.00015652,2]
[420108344,1775682648984,-1000.0,0.00015654,2]
[420108345,1775682648995,-500.0,0.00015656,2]
[420108346,1775682649006,-6805.0,0.00015671,2]
[420108347,1775682649015,-954.0,0.00015672,2]
[420108348,1775682649025,-500.0,0.00015673,2]
[420108349,1775682649035,-500.0,0.00015673,2]
[420108350,1775682649046,-165.08001948,0.00015673,2]
[420108351,1775682649056,-500.0,0.00015673,2]
[420108352,1775682649066,-500.0,0.00015673,2]
[420108353,1775682649076,-500.0,0.00015673,2]
[420108354,1775682649086,-527.83727023,0.00015673,2]
[420108355,1775682649096,-500.0,0.00015673,2]
[420108356,1775682649107,-162.60419222,0.00015673,2]
[420108357,1775682649116,-500.0,0.00015673,2]
[420108358,1775682649126,-500.0,0.00015673,2]
[420108359,1775682649136,-501.53334874,0.00015673,2]
[420108360,1775682649146,-500.0,0.00015673,2]
[420108361,1775682649156,-288.28066678,0.00015673,2]
[420108362,1775682649166,-500.0,0.00015673,2]
[420108363,1775682649177,-500.0,0.00015673,2]
[420108364,1775682649188,-500.0,0.00015673,2]
[420108365,1775682649198,-500.0,0.00015673,2]
[420108366,1775682649208,-500.0,0.00015673,2]
[420108367,1775682649218,-500.0,0.00015673,2]
[420108368,1775682649229,-500.0,0.00015673,2]
[420108369,1775682649239,-500.0,0.00015673,2]
[420108370,1775682649253,-500.0,0.00015673,2]
[420108371,1775682649264,-500.0,0.00015673,2]
[420108372,1775682649274,-500.0,0.00015673,2]
[420108373,1775682649285,-500.0,0.00015673,2]
[420108374,1775682649294,-500.0,0.00015673,2]
[420108375,1775682649305,-500.0,0.00015673,2]
[420108376,1775682649314,-500.0,0.00015673,2]
[420108377,1775682649324,-500.73011575,0.00015673,2]
[420108378,1775682649334,-500.0,0.00015673,2]
[420108379,1775682649344,-164.42313659,0.00015673,2]
[420108380,1775682649354,-163.13180477,0.00015673,2]
[420108381,1775682649364,-192.86830962,0.00015673,2]
[420108382,1775682649374,-499.69188729,0.00015673,2]
[420108383,1775682649384,-500.0,0.00015673,2]
[420108384,1775682649396,-500.32940014,0.00015673,2]
[420108385,1775682649406,-500.0,0.00015673,2]
[420108386,1775682649417,-500.0,0.00015673,2]
[420108387,1775682649428,-166.87044109,0.00015673,2]
[420108388,1775682649440,-500.0,0.00015673,2]
[420108389,1775682649456,-474.64837932,0.00015673,2]
[420108390,1775682649467,-501.02489372,0.00015673,2]
[420108391,1775682649477,-310.58484481,0.00015673,2]
[420108392,1775682649488,-151.0,0.00015677,2]
[420108393,1775682649498,-500.0,0.00015679,2]
[420108394,1775682649508,-2347.24525423,0.0001568,2]
[420108395,1775682649521,-1000.0,0.0001569,2]
[420108396,1775682649533,-500.0,0.0001569,2]
[420108397,1775682649544,-151.0,0.00015697,2]
[420108398,1775682649554,-151.0,0.00015697,2]
[420108399,1775682649565,-151.0,0.00015697,2]
[420108400,1775682649575,-666.0,0.00015699,2]
[420108401,1775682649586,-666.0,0.00015699,2]
[420108402,1775682649596,-500.0,0.00015699,2]
[420108403,1775682649606,-500.0,0.00015699,2]
[420108404,1775682649616,-500.0,0.00015699,2]
[420108405,1775682649626,-500.0,0.00015699,2]
[420108406,1775682649636,-500.0,0.00015699,2]
[420108407,1775682649646,-500.0,0.00015699,2]
[420108408,1775682649656,-500.0,0.00015699,2]
[420108409,1775682649666,-503.61,0.00015699,2]
[420108410,1775682649677,-500.0,0.00015699,2]
[420108411,1775682649688,-500.0,0.00015699,2]
[420108412,1775682649698,-500.0,0.00015699,2]
[420108413,1775682649708,-500.0,0.00015699,2]
[420108414,1775682649718,-78470.01731008,0.000157,2]
[420108415,1775682650769,-2393075.38347065,0.000157,2]
[420108416,1775682650780,-151.0,0.000157,2]
[420108417,1775682650790,-200.0,0.000157,2]
[420108418,1775682650800,-565.60270226,0.000157,2]
[420108419,1775682650809,-151.0,0.000157,2]
[420108420,1775682650819,-2000.0,0.000157,2]
[420108421,1775682650828,-200.0,0.000157,2]
[420108422,1775682650838,-607.236238,0.000157,2]
[420108423,1775682650848,-607.236238,0.000157,2]
[420108424,1775682650860,-607.236238,0.000157,2]
[420108425,1775682650871,-607.236238,0.000157,2]
[420108426,1775682650882,-151.0,0.000157,2]
[420108427,1775682650893,-151.0,0.000157,2]
[420108428,1775682650903,-151.0,0.000157,2]
[420108429,1775682650913,-151.0,0.000157,2]
[420108430,1775682650923,-151.0,0.000157,2]
[420108431,1775682650934,-151.0,0.000157,2]
[420108432,1775682650944,-151.0,0.000157,2]
[420108433,1775682650953,-153.894075,0.000157,2]
[420108434,1775682650963,-153.894075,0.000157,2]
[420108435,1775682650974,-165.05231,0.000157,2]
[420108436,1775682650983,-5170.6243377,0.000157,2]
[420108437,1775682650993,-151.0,0.000157,2]
[420108438,1775682651004,-153.894075,0.000157,2]
[420108439,1775682651014,-165.05231,0.000157,2]
[420108440,1775682651024,-151.0,0.000157,2]
[420108441,1775682651033,-153.894075,0.000157,2]
[420108442,1775682651043,-165.05231,0.000157,2]
[420108443,1775682651052,-151.0,0.000157,2]
[420108444,1775682651062,-165.05231,0.000157,2]
[420108445,1775682651073,-244.113734,0.000157,2]
[420108446,1775682651083,-244.113734,0.000157,2]
[420108447,1775682651094,-244.113734,0.000157,2]
[420108448,1775682651104,-151.0,0.000157,2]
[420108449,1775682651114,-151.0,0.000157,2]
[420108450,1775682651124,-364.116362,0.000157,2]
[420108451,1775682651134,-151.0,0.000157,2]
[420108452,1775682651144,-244.113734,0.000157,2]
[420108453,1775682651154,-151.0,0.000157,2]
[420108454,1775682651164,-151.0,0.000157,2]
[420108455,1775682651174,-151.0,0.000157,2]
[420108456,1775682651184,-364.116362,0.000157,2]
[420108457,1775682651195,-151.0,0.000157,2]
[420108458,1775682651207,-364.116362,0.000157,2]
[420108459,1775682651217,-156.921063,0.000157,2]
[420108460,1775682651228,-364.116362,0.000157,2]
[420108461,1775682651237,-151.0,0.000157,2]
[420108462,1775682651248,-151.0,0.000157,2]
[420108463,1775682651258,-509.495671,0.000157,2]
[420108464,1775682651268,-509.495671,0.000157,2]
[420108465,1775682651279,-151.0,0.000157,2]
[420108466,1775682651289,-204.608753,0.000157,2]
[420108467,1775682651300,-509.495671,0.000157,2]
[420108468,1775682651310,-509.495671,0.000157,2]
[420108469,1775682651321,-300.389171,0.000157,2]
[420108470,1775682651332,-300.389171,0.000157,2]
[420108471,1775682651342,-151.0,0.000157,2]
[420108472,1775682651352,-300.389171,0.000157,2]
[420108473,1775682651362,-155.623108,0.000157,2]
[420108474,1775682651373,-300.389171,0.000157,2]
[420108475,1775682651383,-441.094837,0.000157,2]
[420108476,1775682651393,-155.623108,0.000157,2]
[420108477,1775682651403,-155.623108,0.000157,2]
[420108478,1775682651413,-441.094837,0.000157,2]
[420108479,1775682651422,-382.684518,0.000157,2]
[420108480,1775682651432,-155.623108,0.000157,2]
[420108481,1775682651442,-441.094837,0.000157,2]
[420108482,1775682651452,-382.684518,0.000157,2]
[420108483,1775682651463,-441.094837,0.000157,2]
[420108484,1775682651473,-252.791544,0.000157,2]
[420108485,1775682651483,-382.684518,0.000157,2]
[420108486,1775682651493,-252.791544,0.000157,2]
[420108487,1775682651503,-151.0,0.000157,2]
[420108488,1775682651513,-382.684518,0.000157,2]
[420108489,1775682651523,-252.791544,0.000157,2]
[420108490,1775682651533,-151.0,0.000157,2]
[420108491,1775682651543,-892.21053,0.000157,2]
[420108492,1775682651553,-252.791544,0.000157,2]
[420108493,1775682651563,-151.0,0.000157,2]
[420108494,1775682651574,-892.21053,0.000157,2]
[420108495,1775682651584,-151.0,0.000157,2]
[420108496,1775682651594,-892.21053,0.000157,2]
[420108497,1775682651604,-151.0,0.000157,2]
[420108498,1775682651614,-151.0,0.000157,2]
[420108499,1775682651624,-151.0,0.000157,2]
[420108500,1775682651634,-892.21053,0.000157,2]
[420108501,1775682651644,-151.0,0.000157,2]
[420108502,1775682651653,-151.0,0.000157,2]
[420108503,1775682651664,-151.0,0.000157,2]
[420108504,1775682651674,-151.0,0.000157,2]
[420108505,1775682651684,-151.0,0.000157,2]
[420108506,1775682651694,-264.356208,0.000157,2]
[420108507,1775682651705,-253.864605,0.000157,2]
[420108508,1775682651716,-151.0,0.000157,2]
[420108509,1775682651726,-399324.4604996,0.000157,2]
[420108510,1775682651737,-264.356208,0.000157,2]
[420108511,1775682651747,-151.0,0.000157,2]
[420108512,1775682651757,-253.864605,0.000157,2]
[420108513,1775682651767,-195.251014,0.000157,2]
[420108514,1775682651777,-783.271789,0.000157,2]
[420108515,1775682651788,-264.356208,0.000157,2]
[420108516,1775682651798,-151.0,0.000157,2]
[420108517,1775682651808,-253.864605,0.000157,2]
[420108518,1775682651818,-195.251014,0.000157,2]
[420108519,1775682651828,-783.271789,0.000157,2]
[420108520,1775682651838,-281.058131,0.000157,2]
[420108521,1775682651848,-264.356208,0.000157,2]
[420108522,1775682651859,-195.251014,0.000157,2]
[420108523,1775682651869,-253.864605,0.000157,2]
[420108524,1775682651879,-281.058131,0.000157,2]
[420108525,1775682651888,-783.271789,0.000157,2]
[420108526,1775682651899,-195.251014,0.000157,2]
[420108527,1775682651909,-281.058131,0.000157,2]
[420108528,1775682651918,-783.271789,0.000157,2]
[420108529,1775682651928,-281.058131,0.000157,2]
[420108530,1775682651939,-1104.329926,0.000157,2]
[420108531,1775682651949,-345.828534,0.000157,2]
[420108532,1775682651959,-345.828534,0.000157,2]
[420108533,1775682651969,-345.828534,0.000157,2]
[420108534,1775682651979,-1104.329926,0.000157,2]
[420108535,1775682651989,-345.828534,0.000157,2]
[420108536,1775682651999,-1104.329926,0.000157,2]
[420108537,1775682652010,-1104.329926,0.000157,2]
[420108538,1775682652020,-441.668381,0.000157,2]
[420108539,1775682652030,-441.668381,0.000157,2]
[420108540,1775682652040,-580.093191,0.000157,2]
[420108541,1775682652051,-441.668381,0.000157,2]
[420108542,1775682652061,-580.093191,0.000157,2]
[420108543,1775682652071,-441.668381,0.000157,2]
[420108544,1775682652081,-580.093191,0.000157,2]
[420108545,1775682652091,-580.093191,0.000157,2]
[420108546,1775682652102,-472.935855,0.000157,2]
[420108547,1775682652112,-547.090441,0.000157,2]
[420108548,1775682652122,-472.935855,0.000157,2]
[420108549,1775682652132,-547.090441,0.000157,2]
[420108550,1775682652142,-472.935855,0.000157,2]
[420108551,1775682652151,-547.090441,0.000157,2]
[420108552,1775682652161,-472.935855,0.000157,2]
[420108553,1775682652171,-547.090441,0.000157,2]
[420108554,1775682652182,-391.615939,0.000157,2]
[420108555,1775682652193,-391.615939,0.000157,2]
[420108556,1775682652203,-391.615939,0.000157,2]
[420108557,1775682652213,-663.378314,0.000157,2]
[420108558,1775682652224,-391.615939,0.000157,2]
[420108559,1775682652234,-663.378314,0.000157,2]
[420108560,1775682652245,-172.0,0.000157,2]
[420108561,1775682652255,-663.378314,0.000157,2]
[420108562,1775682652265,-663.378314,0.000157,2]
[420108563,1775682652275,-151.0,0.000157,2]
[420108564,1775682652285,-151.0,0.000157,2]
[420108565,1775682652295,-151.0,0.000157,2]
[420108566,1775682652305,-151.0,0.000157,2]
[420108567,1775682652315,-151.0,0.000157,2]
[420108568,1775682652325,-172.52503,0.000157,2]
[420108569,1775682652336,-151.0,0.000157,2]
[420108570,1775682652346,-151.0,0.000157,2]
[420108571,1775682652355,-151.0,0.000157,2]
[420108572,1775682652365,-172.52503,0.000157,2]
[420108573,1775682652374,-157.215334,0.000157,2]
[420108574,1775682652384,-151.0,0.000157,2]
[420108575,1775682652394,-172.52503,0.000157,2]
[420108576,1775682652404,-157.215334,0.000157,2]
[420108577,1775682652413,-151.0,0.000157,2]
[420108578,1775682652423,-172.52503,0.000157,2]
[420108579,1775682652433,-157.215334,0.000157,2]
[420108580,1775682652442,-157.215334,0.000157,2]
[420108581,1775682652452,-799.667275,0.000157,2]
[420108582,1775682652462,-799.667275,0.000157,2]
[420108583,1775682652472,-799.667275,0.000157,2]
[420108584,1775682652481,-799.667275,0.000157,2]
[420108585,1775682652490,-151.0,0.000157,2]
[420108586,1775682652500,-151.0,0.000157,2]
[420108587,1775682652513,-200.0,0.000157,2]
[420108588,1775682652523,-1000.0,0.000157,2]
[420108589,1775682652533,-313.0,0.000157,2]
[420108590,1775682652543,-878.0,0.000157,2]
[420108592,1775682652552,-500.0,0.000157,2]
[420108594,1775682652561,-500.0,0.000157,2]
[420108595,1775682652571,-500.0,0.000157,2]
[420108597,1775682652581,-500.0,0.000157,2]
[420108599,1775682652591,-500.0,0.000157,2]
[420108600,1775682652602,-500.0,0.000157,2]
[420108601,1775682652611,-500.0,0.000157,2]
[420108602,1775682652620,-500.0,0.000157,2]
[420108603,1775682652630,-500.0,0.000157,2]
[420108604,1775682652640,-500.0,0.000157,2]
[420108605,1775682652649,-757.0,0.000157,2]
[420108606,1775682652660,-157.307483,0.000157,2]
[420108607,1775682652670,-157.307483,0.000157,2]
[420108608,1775682652680,-157.307483,0.000157,2]
[420108609,1775682652690,-151.0,0.000157,2]
[420108610,1775682652699,-151.0,0.000157,2]
[420108611,1775682652709,-157.307483,0.000157,2]
[420108612,1775682652719,-500.0,0.000157,2]
[420108613,1775682652729,-500.0,0.000157,2]
[420108614,1775682652738,-500.0,0.000157,2]
[420108615,1775682652749,-500.0,0.000157,2]
[420108616,1775682652758,-500.0,0.000157,2]
[420108617,1775682652767,-500.0,0.000157,2]
[420108618,1775682652778,-500.0,0.000157,2]
[420108619,1775682652788,-500.0,0.000157,2]
[420108620,1775682652799,-500.0,0.000157,2]
[420108622,1775682652809,-500.0,0.000157,2]
[420108624,1775682652819,-500.0,0.000157,2]
[420108625,1775682652829,-500.0,0.000157,2]
[420108626,1775682652839,-500.0,0.000157,2]
[420108627,1775682652849,-500.0,0.000157,2]
[420108628,1775682652859,-500.0,0.000157,2]
[420108629,1775682652869,-500.0,0.000157,2]
[420108630,1775682652878,-500.0,0.000157,2]
[420108631,1775682652888,-237.071796,0.000157,2]
[420108632,1775682652898,-500.0,0.000157,2]
[420108633,1775682652908,-500.0,0.000157,2]
[420108634,1775682652917,-500.0,0.000157,2]
[420108635,1775682652927,-500.0,0.000157,2]
[420108636,1775682652937,-151.0,0.000157,2]
[420108637,1775682652947,-500.0,0.000157,2]
[420108638,1775682652958,-500.0,0.000157,2]
[420108639,1775682652968,-151.0,0.000157,2]
[420108640,1775682652977,-1263.081067,0.000157,2]
[420108641,1775682652988,-500.0,0.000157,2]
[420108642,1775682652998,-237.071796,0.000157,2]
[420108643,1775682653009,-500.0,0.000157,2]
[420108644,1775682653019,-500.0,0.000157,2]
[420108645,1775682653029,-500.0,0.000157,2]
[420108646,1775682653040,-1430.515635,0.000157,2]
[420108647,1775682653051,-500.0,0.000157,2]
[420108648,1775682653061,-500.0,0.000157,2]
[420108649,1775682653071,-500.0,0.000157,2]
[420108650,1775682653082,-1263.081067,0.000157,2]
[420108651,1775682653093,-500.0,0.000157,2]
[420108652,1775682653103,-237.071796,0.000157,2]
[420108653,1775682653114,-500.0,0.000157,2]
[420108654,1775682653124,-500.0,0.000157,2]
[420108655,1775682653135,-500.0,0.000157,2]
[420108656,1775682653146,-500.0,0.000157,2]
[420108657,1775682653157,-1430.515635,0.000157,2]
[420108658,1775682653166,-500.0,0.000157,2]
[420108659,1775682653177,-500.0,0.000157,2]
[420108660,1775682653187,-185.081385,0.000157,2]
[420108661,1775682653198,-1263.081067,0.000157,2]
[420108662,1775682653209,-237.071796,0.000157,2]
[420108663,1775682653220,-500.0,0.000157,2]
[420108664,1775682653230,-500.0,0.000157,2]
[420108665,1775682653241,-500.0,0.000157,2]
[420108666,1775682653252,-500.0,0.000157,2]
[420108667,1775682653262,-500.0,0.000157,2]
[420108668,1775682653274,-1430.515635,0.000157,2]
[420108669,1775682653285,-500.0,0.000157,2]
[420108670,1775682653295,-500.0,0.000157,2]